bitfinex/quotes_BTCUSD_20250115
["timestamp","ask_amount","ask_price","bid_price","bid_amount"]
[1736960137238,6.2e-07,99138.0,99137.0,2.15988292]
[1736960137436,6.2e-07,99138.0,99137.0,2.26082152]
[1736960137875,6.2e-07,99138.0,99137.0,2.79792152]
[1736960138885,6.2e-07,99138.0,99137.0,2.79292152]
[1736960139222,6.2e-07,99138.0,99137.0,2.94792152]
[1736960139426,6.2e-07,99138.0,99137.0,2.99662152]
[1736960139669,6.2e-07,99138.0,99137.0,2.98762152]
[1736960140076,6.2e-07,99138.0,99137.0,2.99662152]
[1736960140256,6.2e-07,99138.0,99137.0,2.98262152]
[1736960140676,6.2e-07,99138.0,99137.0,2.98362152]
[1736960141082,6.2e-07,99138.0,99137.0,2.98462152]
[1736960142445,6.2e-07,99138.0,99137.0,2.44752152]
[1736960142657,6.2e-07,99138.0,99137.0,2.34752152]
[1736960142859,6.2e-07,99138.0,99137.0,2.44752152]
[1736960143804,6.2e-07,99138.0,99137.0,2.34658292]
[1736960144220,6.2e-07,99138.0,99137.0,2.24658292]
[1736960144827,6.2e-07,99138.0,99137.0,2.34658292]
[1736960145209,6.2e-07,99138.0,99137.0,2.24658292]
[1736960145407,6.2e-07,99138.0,99137.0,2.19658292]
[1736960145652,6.2e-07,99138.0,99137.0,2.06568292]
[1736960146298,6.2e-07,99138.0,99137.0,1.86568292]
[1736960147266,6.2e-07,99138.0,99137.0,1.86468292]
[1736960147475,4e-05,99150.0,99145.0,0.201723]
[1736960147678,0.00053992,99150.0,99145.0,0.770963]
[1736960149266,0.00053992,99150.0,99145.0,0.56924]
[1736960149527,0.00053992,99150.0,99146.0,0.201722]
[1736960149710,0.00053992,99150.0,99146.0,0.770952]
[1736960149910,0.00153992,99150.0,99146.0,0.770952]
[1736960150852,0.00053992,99150.0,99146.0,0.770952]
[1736960151025,0.00153992,99150.0,99146.0,0.776952]
[1736960151833,0.00153992,99150.0,99146.0,0.57823]
[1736960152482,0.00153992,99150.0,99147.0,0.10422692]
[1736960152837,0.00153992,99150.0,99147.0,0.67345692]
[1736960153296,0.00053992,99150.0,99148.0,0.201718]
[1736960153499,0.00053992,99150.0,99148.0,0.56923]
[1736960154784,0.00053992,99150.0,99148.0,0.57323]
[1736960155128,0.00053992,99150.0,99148.0,0.57623]
[1736960155582,0.00053992,99150.0,99148.0,0.57323]
[1736960156146,0.00053992,99150.0,99148.0,0.57123]
[1736960156680,0.00053992,99150.0,99148.0,0.57423]
[1736960159839,0.00139492,99150.0,99148.0,0.57423]
[1736960161756,0.0826,99149.0,99148.0,0.57423]
[1736960161965,0.40622692,99149.0,99148.0,0.57423]
[1736960162386,0.51098892,99149.0,99148.0,0.57423]
[1736960162555,0.51098892,99149.0,99148.0,0.57223]
[1736960162714,0.51098892,99149.0,99148.0,0.57023]
[1736960163353,0.51098892,99149.0,99148.0,0.57123]
[1736960163756,0.51098892,99149.0,99148.0,0.57023]
[1736960163976,0.51698892,99149.0,99148.0,0.57023]
[1736960164716,0.51698892,99149.0,99148.0,0.56923]
[1736960164849,0.51798892,99149.0,99148.0,0.56923]
[1736960165247,0.51698892,99149.0,99148.0,0.56923]
[1736960165800,0.51798892,99149.0,99148.0,0.56923]
[1736960169800,0.52434892,99149.0,99148.0,0.56923]
[1736960170538,0.390762,99149.0,99148.0,0.56923]
[1736960170745,0.136,99149.0,99148.0,0.56923]
[1736960170923,0.007,99149.0,99148.0,0.56923]
[1736960171124,0.006,99149.0,99148.0,0.56923]
[1736960171930,0.001855,99149.0,99148.0,0.56923]
[1736960172133,0.006855,99149.0,99148.0,0.56923]
[1736960172668,0.005855,99149.0,99148.0,0.56923]
[1736960172871,0.005855,99149.0,99148.0,0.57123]
[1736960173223,0.005855,99149.0,99148.0,0.57423]
[1736960173631,0.000855,99149.0,99148.0,0.57123]
[1736960173826,0.000855,99149.0,99148.0,0.57223]
[1736960174745,0.000855,99149.0,99148.0,0.57023]
[1736960175601,0.000855,99149.0,99148.0,0.56923]
[1736960175775,0.000855,99149.0,99148.0,0.57023]
[1736960184710,0.000855,99149.0,99148.0,2.07023]
[1736960185165,0.000855,99149.0,99148.0,2.06923]
[1736960185450,0.000855,99149.0,99148.0,0.57323]
[1736960185608,0.001855,99149.0,99148.0,0.58123]
[1736960185805,0.000855,99149.0,99148.0,0.57323]
[1736960186207,0.000855,99149.0,99148.0,0.57823]
[1736960186407,0.000855,99149.0,99148.0,0.57323]
[1736960186808,0.000855,99149.0,99148.0,0.56923]
[1736960187043,0.36154265,99149.0,99148.0,0.56923]
[1736960187206,0.351736,99139.0,99137.0,0.000855]
[1736960187406,1.31682145,99139.0,99137.0,0.000855]
[1736960187610,1.58525645,99139.0,99137.0,0.000855]
[1736960187923,0.273,99138.0,99137.0,5e-07]
[1736960188128,1.63124492,99138.0,99137.0,5e-07]
[1736960188330,0.40746545,99138.0,99137.0,5e-07]
[1736960188541,0.40746545,99138.0,99100.0,0.0008553]
[1736960188542,0.374814,99101.0,99100.0,0.0008553]
[1736960188766,0.48540092,99101.0,99100.0,0.3035753]
[1736960188965,0.51563945,99101.0,99100.0,0.3035753]
[1736960189171,0.54325079,99101.0,99100.0,0.3035753]
[1736960189734,0.54325079,99101.0,99100.0,0.30372531]
[1736960189974,0.51301226,99101.0,99100.0,0.30372531]
[1736960190175,0.48540092,99101.0,99100.0,0.30372531]
[1736960190676,0.54325079,99101.0,99100.0,0.30372531]
[1736960191097,0.54625079,99101.0,99100.0,0.30372531]
[1736960191876,0.55425079,99101.0,99100.0,0.30472531]
[1736960192075,0.55412915,99101.0,99100.0,0.30472531]
[1736960193207,0.52651781,99101.0,99100.0,0.30472531]
[1736960193376,0.55412915,99101.0,99100.0,0.30472531]
[1736960193580,0.49627928,99101.0,99100.0,0.30472531]
[1736960194671,0.49081678,99101.0,99100.0,0.30472531]
[1736960195390,0.52105531,99101.0,99100.0,0.30472531]
[1736960195793,0.49081678,99101.0,99100.0,0.30472531]
[1736960195986,0.52285145,99101.0,99100.0,0.30472531]
[1736960196223,0.55046279,99101.0,99100.0,0.30472531]
[1736960196419,1.08326215,99101.0,99100.0,0.24417931]
[1736960196669,1.22926215,99101.0,99100.0,0.20381531]
[1736960197024,0.89451815,99101.0,99100.0,0.16345131]
[1736960197317,2.44155015,99101.0,99100.0,0.16345131]
[1736960197494,2.78282815,99101.0,99100.0,0.16345131]
[1736960197695,2.73884015,99101.0,99100.0,0.16245131]
[1736960197900,2.74784015,99101.0,99100.0,0.16345131]
[1736960198092,2.72022881,99101.0,99100.0,0.16345131]
[1736960198236,2.74484015,99101.0,99100.0,0.16345131]
[1736960198840,2.74484015,99101.0,99100.0,0.14326931]
[1736960199041,2.42545615,99101.0,99100.0,0.14326931]
[1736960199244,2.37698945,99101.0,99100.0,0.14326931]
[1736960199447,2.11821879,99101.0,99100.0,0.14326931]
[1736960202316,2.01821879,99101.0,99100.0,0.14326931]
[1736960202532,1.99060745,99101.0,99100.0,0.14326931]
[1736960202748,1.99048992,99101.0,99100.0,0.14326931]
[1736960202940,1.78412992,99101.0,99100.0,0.14326931]
[1736960203144,0.89020792,99101.0,99100.0,0.14326931]
[1736960203528,1.04805779,99101.0,99100.0,0.14326931]
[1736960204331,0.81408645,99101.0,99100.0,0.14326931]
[1736960204505,0.57063392,99101.0,99100.0,0.14326931]
[1736960204724,0.63879492,99101.0,99100.0,0.14326931]
[1736960204924,0.53961292,99101.0,99100.0,0.14326931]
[1736960205128,1.10473092,99101.0,99100.0,0.14326931]
[1736960205292,1.16727092,99101.0,99100.0,0.14326931]
[1736960206107,1.14077092,99101.0,99100.0,0.14326931]
[1736960206828,0.79612292,99101.0,99100.0,0.14326931]
[1736960207028,0.79612292,99101.0,99100.0,0.14412461]
[1736960207276,0.49361292,99101.0,99100.0,0.14412461]
[1736960207841,0.48725292,99101.0,99100.0,0.14412461]
[1736960208038,0.49361292,99101.0,99100.0,0.14412461]
[1736960212101,0.76378692,99101.0,99100.0,0.14412461]
[1736960213565,0.74517192,99101.0,99100.0,0.14412461]
[1736960214147,0.49361292,99101.0,99100.0,0.14412461]
[1736960214349,0.66927192,99101.0,99100.0,0.14412461]
[1736960215109,0.49361292,99101.0,99100.0,0.14412461]
[1736960217769,0.56278535,99101.0,99100.0,0.14412461]
[1736960217973,0.1,99094.0,99066.0,0.0008561]
[1736960218178,0.15,99079.0,99066.0,0.0008561]
[1736960218393,0.374881,99068.0,99066.0,0.0008561]
[1736960218597,0.542487,99068.0,99067.0,0.00100615]
[1736960218778,0.54084406,99068.0,99067.0,0.00100615]
[1736960218980,0.54084406,99068.0,99067.0,0.30382615]
[1736960219277,0.505781,99068.0,99067.0,0.30382615]
[1736960219517,0.54084406,99068.0,99067.0,0.30382615]
[1736960219708,0.64507098,99068.0,99067.0,0.30382615]
[1736960220113,0.61000792,99068.0,99067.0,0.30382615]
[1736960220266,0.64507098,99068.0,99067.0,0.30382615]
[1736960220671,0.64394241,99068.0,99067.0,0.30382615]
[1736960221116,0.64494241,99068.0,99067.0,0.30382615]
[1736960221573,0.60887935,99068.0,99067.0,0.30382615]
[1736960221755,0.61187935,99068.0,99067.0,0.30382615]
[1736960221895,0.61087935,99068.0,99067.0,0.30382615]
[1736960222098,0.61787935,99068.0,99067.0,0.31053226]
[1736960222294,0.61587935,99068.0,99067.0,0.30382615]
[1736960222515,0.60887935,99068.0,99067.0,0.31053226]
[1736960222721,0.61787935,99068.0,99067.0,0.30868724]
[1736960223120,0.61087935,99068.0,99067.0,0.30868724]
[1736960223787,0.64201687,99068.0,99067.0,0.30868724]
[1736960223993,0.64001687,99068.0,99067.0,0.30868724]
[1736960224193,0.60887935,99068.0,99067.0,0.30868724]
[1736960224421,0.61987935,99068.0,99067.0,0.30868724]
[1736960224578,0.61187935,99068.0,99067.0,0.30868724]
[1736960224791,0.60887935,99068.0,99067.0,0.30868724]
[1736960224987,0.61987935,99068.0,99067.0,0.30868724]
[1736960225190,0.61187935,99068.0,99067.0,0.30868724]
[1736960225558,0.49233935,99068.0,99067.0,0.30868724]
[1736960225755,0.49533935,99068.0,99067.0,0.30868724]
[1736960226245,1.21052135,99068.0,99067.0,0.30382615]
[1736960226429,1.25693535,99068.0,99067.0,0.30382615]
[1736960227011,1.25393535,99068.0,99067.0,0.30382615]
[1736960227215,0.73256335,99068.0,99067.0,0.30382615]
[1736960227419,0.45797935,99068.0,99067.0,0.30892384]
[1736960227591,0.15936,99068.0,99067.0,0.30892384]
[1736960227788,0.158,99068.0,99067.0,0.30892384]
[1736960227991,0.01436,99068.0,99067.0,1.80892384]
[1736960228194,0.01736,99068.0,99067.0,1.80892384]
[1736960228395,0.011,99068.0,99067.0,1.80892384]
[1736960228640,0.00636,99069.0,99067.0,0.30892384]
[1736960229036,0.002,99068.0,99067.0,0.30892384]
[1736960229390,0.01,99068.0,99067.0,0.30892384]
[1736960229590,0.002,99068.0,99067.0,0.30892384]
[1736960230351,0.002,99068.0,99067.0,1.80892384]
[1736960230560,0.001,99069.0,99067.0,1.80892384]
[1736960231662,0.001,99069.0,99068.0,0.23052692]
[1736960231875,0.0066,99092.0,99068.0,0.43240792]
[1736960232049,0.15,99089.0,99068.0,0.74022115]
[1736960232878,0.001,99069.0,99068.0,0.74022115]
[1736960233077,0.15,99089.0,99068.0,0.74022115]
[1736960233311,0.15,99089.0,99068.0,0.74322115]
[1736960233729,0.11757881,99110.0,99073.0,0.20187]
[1736960233946,0.0066,99102.0,99080.0,0.201855]
[1736960234152,0.11757881,99100.0,99081.0,0.0787]
[1736960234327,0.11757881,99100.0,99083.0,1.5]
[1736960234531,0.15,99099.0,99083.0,1.80278]
[1736960234671,0.15,99099.0,99084.0,0.00492064]
[1736960234874,0.11757881,99093.0,99084.0,0.30769064]
[1736960235084,0.201846,99085.0,99084.0,0.30769064]
[1736960235284,0.15,99085.0,99084.0,0.30769064]
[1736960236111,0.173,99085.0,99084.0,0.30277]
[1736960236375,0.173,99085.0,99084.0,0.30760304]
[1736960237124,0.173,99085.0,99084.0,0.30960304]
[1736960237291,0.27722692,99085.0,99084.0,0.30960304]
[1736960237483,0.27722692,99085.0,99084.0,0.30760304]
[1736960237895,0.27722692,99085.0,99084.0,0.30960304]
[1736960238058,0.95678692,99085.0,99084.0,0.30960304]
[1736960238263,1.65155192,99085.0,99084.0,0.30760304]
[1736960238547,1.67642138,99085.0,99084.0,0.30277]
[1736960238751,1.64926492,99085.0,99084.0,0.30277]
[1736960238879,0.54229342,99085.0,99084.0,1.14409692]
[1736960239081,0.08993749,99111.0,99100.0,0.301816]
[1736960239284,0.08993749,99111.0,99108.0,0.201799]
[1736960239509,0.26743858,99127.0,99108.0,0.201799]
[1736960239510,0.00736,99159.0,99113.0,0.1]
[1736960239722,0.10422692,99148.0,99116.0,0.1]
[1736960239879,0.00736,99147.0,99116.0,0.40690692]
[1736960240097,0.11158692,99147.0,99117.0,0.00508004]
[1736960240320,0.31330892,99147.0,99117.0,0.30267]
[1736960240524,0.15,99139.0,99117.0,0.30267]
[1736960240740,0.10422692,99138.0,99117.0,0.30267]
[1736960241114,0.15,99137.0,99117.0,0.30267]
[1736960241348,0.10422692,99137.0,99117.0,0.30267]
[1736960241764,0.17605216,99130.0,99117.0,0.30267]
[1736960241975,0.351779,99118.0,99117.0,0.30367]
[1736960242195,0.351779,99118.0,99117.0,0.28789118]
[1736960242196,0.27722692,99118.0,99117.0,0.28789118]
[1736960242629,0.173,99118.0,99117.0,0.28889118]
[1736960242841,0.15736,99118.0,99117.0,0.28789118]
[1736960243276,0.15,99118.0,99117.0,0.28789118]
[1736960243457,0.154,99118.0,99117.0,0.28789118]
[1736960243953,0.004,99118.0,99117.0,0.28789118]
[1736960244166,0.004,99118.0,99117.0,0.29089118]
[1736960244572,0.00736,99134.0,99117.0,0.29089118]
[1736960244781,0.00736,99134.0,99117.0,0.28789118]
[1736960244986,0.00736,99134.0,99117.0,0.29389118]
[1736960245197,0.00736,99135.0,99118.0,0.201779]
[1736960245435,0.00736,99135.0,99118.0,0.597929]
[1736960246509,0.00736,99135.0,99119.0,0.201777]
[1736960246895,0.00736,99135.0,99119.0,0.519227]
[1736960247095,0.023,99148.0,99119.0,0.519227]
[1736960247299,0.023,99146.0,99119.0,0.519227]
[1736960247892,0.15,99147.0,99129.0,0.201756]
[1736960247893,0.15725913,99147.0,99129.0,0.201756]
[1736960248097,0.15725913,99147.0,99133.0,0.201747]
[1736960248301,0.00736,99147.0,99133.0,0.3174]
[1736960248851,0.00135502,99149.0,99133.0,0.3174]
[1736960249074,0.00871502,99149.0,99133.0,0.3174]
[1736960249489,0.22597977,99148.0,99133.0,0.3174]
[1736960249662,0.023,99146.0,99133.0,0.3174]
[1736960250520,0.15736,99147.0,99133.0,0.3184]
[1736960250521,0.15,99147.0,99133.0,0.3184]
[1736960250701,0.00736,99145.0,99133.0,0.3184]
[1736960250896,0.00736,99145.0,99133.0,0.3174]
[1736960251095,0.00135502,99149.0,99134.0,1.5]
[1736960251266,0.00135502,99149.0,99139.0,0.201735]
[1736960251458,0.00135502,99149.0,99139.0,0.519115]
[1736960252268,0.00135502,99149.0,99140.0,0.0787]
[1736960252606,0.00235502,99149.0,99140.0,0.39608]
[1736960252778,0.00135502,99149.0,99140.0,0.39608]
[1736960253733,0.00135502,99149.0,99140.0,0.31738]
[1736960254159,0.00135502,99149.0,99140.0,0.32038]
[1736960254373,0.15135502,99149.0,99140.0,0.32038]
[1736960255067,0.023,99148.0,99140.0,0.32638]
[1736960255271,0.023,99148.0,99140.0,0.32038]
[1736960255472,0.023,99148.0,99140.0,0.32338]
[1736960255649,0.023,99148.0,99140.0,0.32038]
[1736960255880,0.15,99142.0,99140.0,0.32038]
[1736960256085,0.374732,99141.0,99140.0,0.32338]
[1736960256497,0.173,99141.0,99140.0,0.32038]
[1736960256717,0.173,99141.0,99140.0,0.32138]
[1736960256921,0.173,99141.0,99140.0,0.3222344]
[1736960257124,0.173,99141.0,99140.0,0.3212344]
[1736960257331,0.173,99141.0,99140.0,0.3182344]
[1736960257567,0.173,99141.0,99140.0,0.3202344]
[1736960258220,0.173,99141.0,99140.0,0.3232344]
[1736960258221,0.27722692,99141.0,99140.0,0.3232344]
[1736960258643,0.27722692,99141.0,99140.0,0.3202344]
[1736960258796,0.27822692,99141.0,99140.0,0.3182344]
[1736960258999,0.27722692,99141.0,99140.0,0.3182344]
[1736960259626,0.27822692,99141.0,99140.0,0.3182344]
[1736960261127,0.174,99141.0,99140.0,0.3182344]
[1736960261334,0.15836,99141.0,99140.0,0.3182344]
[1736960261490,0.151,99141.0,99140.0,0.3182344]
[1736960261694,0.15836,99141.0,99140.0,0.3182344]
[1736960261913,0.151,99141.0,99140.0,1.8182344]
[1736960262137,0.001,99141.0,99140.0,1.8182344]
[1736960262320,0.00135502,99149.0,99140.0,1.8182344]
[1736960262496,0.15135502,99149.0,99140.0,1.8182344]
[1736960262718,0.15,99142.0,99140.0,1.8202344]
[1736960263042,0.15736,99142.0,99140.0,1.8182344]
[1736960263246,0.15736,99142.0,99140.0,1.8222344]
[1736960263445,0.15736,99142.0,99140.0,1.8242344]
[1736960264153,0.00736,99142.0,99140.0,0.3242344]
[1736960264598,0.00736,99142.0,99140.0,0.3202344]
[1736960264739,0.00736,99142.0,99140.0,0.3182344]
[1736960264945,0.00736,99142.0,99140.0,0.3222344]
[1736960265163,0.00736,99142.0,99140.0,0.3202344]
[1736960265340,0.00736,99142.0,99140.0,0.3222344]
[1736960269672,0.11822258,99150.0,99140.0,0.3222344]
[1736960269865,0.000895,99150.0,99140.0,0.3222344]
[1736960270683,0.15135502,99149.0,99140.0,0.3222344]
[1736960270928,0.15135502,99149.0,99140.0,0.3202344]
[1736960271684,0.15135502,99149.0,99140.0,0.3182344]
[1736960271983,0.15235502,99149.0,99140.0,0.3182344]
[1736960272741,0.15135502,99149.0,99140.0,0.3182344]
[1736960272991,0.15135502,99149.0,99141.0,1.5]
[1736960273173,0.15135502,99149.0,99141.0,1.81738]
[1736960273391,0.15135502,99149.0,99141.0,0.31738]
[1736960273392,0.023,99146.0,99141.0,0.31738]
[1736960273842,0.15,99144.0,99141.0,0.31738]
[1736960275330,0.15,99144.0,99141.0,0.31938]
[1736960275530,0.15,99142.0,99141.0,0.31938]
[1736960275978,0.15,99142.0,99141.0,0.31838]
[1736960277266,0.173,99142.0,99141.0,0.31938]
[1736960277861,0.173,99142.0,99141.0,0.31838]
[1736960278024,0.173,99142.0,99141.0,0.31938]
[1736960278647,0.173,99142.0,99141.0,0.31738]
[1736960279023,0.175,99142.0,99141.0,0.31738]
[1736960279646,0.002,99142.0,99141.0,0.31738]
[1736960279847,0.152,99142.0,99141.0,0.31738]
[1736960280648,0.152,99142.0,99141.0,0.31838]
[1736960281039,0.15,99142.0,99141.0,0.31738]
[1736960281435,0.007,99146.0,99141.0,0.31838]
[1736960281860,0.15,99144.0,99141.0,0.31838]
[1736960282105,0.15,99144.0,99141.0,0.31938]
[1736960282311,0.15,99144.0,99141.0,0.31838]
[1736960282519,0.173,99142.0,99141.0,0.31838]
[1736960282935,0.15,99142.0,99141.0,0.31838]
[1736960283377,0.15,99142.0,99141.0,0.31738]
[1736960283578,0.00179424,99147.0,99141.0,0.31738]
[1736960283794,0.00179424,99147.0,99141.0,0.31838]
[1736960283992,0.00179424,99147.0,99142.0,1.5]
[1736960284374,0.00179424,99147.0,99142.0,1.81738]
[1736960285170,0.00179424,99147.0,99142.0,1.82138]
[1736960285780,0.15,99145.0,99142.0,1.82138]
[1736960287342,0.00179424,99147.0,99142.0,1.81938]
[1736960287555,0.00179424,99147.0,99146.0,0.1]
[1736960287768,0.00179424,99147.0,99146.0,1.62691516]
[1736960287922,0.00179424,99147.0,99146.0,3.20981516]
[1736960288132,0.00179424,99147.0,99146.0,3.10981516]
[1736960288336,0.00179424,99147.0,99146.0,3.00981516]
[1736960288654,0.201675,99169.0,99147.0,0.20172]
[1736960288855,0.00014992,99171.0,99148.0,0.10422692]
[1736960289037,0.15,99169.0,99148.0,0.42158692]
[1736960289255,0.11732758,99170.0,99157.0,1.5]
[1736960289453,0.11732758,99170.0,99157.0,1.81733]
[1736960289672,0.00772911,99169.0,99157.0,1.81733]
[1736960289879,0.201676,99169.0,99157.0,1.81733]
[1736960291283,0.201679,99167.0,99157.0,1.81833]
[1736960291492,0.15,99168.0,99157.0,1.81833]
[1736960291698,0.201679,99167.0,99157.0,1.81833]
[1736960292223,0.201679,99167.0,99157.0,1.81733]
[1736960292392,0.201679,99167.0,99157.0,1.81833]
[1736960292551,0.15,99168.0,99157.0,1.81933]
[1736960292915,0.201679,99167.0,99157.0,1.81933]
[1736960293326,0.201679,99167.0,99157.0,0.31933]
[1736960293740,0.201679,99167.0,99157.0,1.81933]
[1736960294157,0.02253855,99166.0,99157.0,1.81933]
[1736960294345,0.02253855,99166.0,99157.0,1.81833]
[1736960294562,0.02253855,99166.0,99157.0,1.81933]
[1736960295135,0.201684,99165.0,99157.0,1.81833]
[1736960295333,0.201684,99165.0,99157.0,1.81733]
[1736960295552,0.201684,99165.0,99157.0,1.81933]
[1736960295742,0.201684,99165.0,99157.0,1.82133]
[1736960296125,0.403385,99161.0,99157.0,1.82133]
[1736960296340,0.403385,99161.0,99157.0,0.31933]
[1736960296341,0.08,99159.0,99157.0,0.31933]
[1736960296552,0.15,99158.0,99157.0,0.31933]
[1736960297217,0.27722692,99158.0,99157.0,0.10855822]
[1736960297429,0.32382692,99158.0,99157.0,0.10655822]
[1736960297649,0.32382692,99158.0,99157.0,0.10855822]
[1736960298068,0.32382692,99158.0,99157.0,0.10655822]
[1736960298271,0.32782692,99158.0,99157.0,0.10655822]
[1736960298496,0.32882692,99158.0,99157.0,0.10655822]
[1736960299736,0.30582692,99158.0,99157.0,0.10655822]
[1736960300661,0.25922692,99158.0,99157.0,0.10655822]
[1736960301187,0.155,99158.0,99157.0,0.10655822]
[1736960301399,0.005,99158.0,99157.0,0.10655822]
[1736960301979,0.005,99158.0,99157.0,1.60655822]
[1736960302186,0.004,99158.0,99157.0,1.60655822]
[1736960302612,0.004,99158.0,99157.0,1.60855822]
[1736960303217,0.004,99158.0,99157.0,1.61035225]
[1736960303432,0.004,99158.0,99157.0,1.81205225]
[1736960303610,0.02339285,99166.0,99157.0,1.81205225]
[1736960303995,0.02339285,99166.0,99157.0,1.81505225]
[1736960304618,0.02339285,99166.0,99157.0,1.61135225]
[1736960304829,0.02339285,99166.0,99157.0,1.60935225]
[1736960305009,0.02339285,99166.0,99157.0,1.61235225]
[1736960305214,0.403368,99165.0,99157.0,1.61135225]
[1736960305417,0.403368,99165.0,99157.0,1.60835225]
[1736960305660,0.403368,99165.0,99157.0,1.61035225]
[1736960306063,0.201693,99161.0,99157.0,1.61035225]
[1736960306190,0.201693,99161.0,99157.0,0.11335225]
[1736960306589,0.201686,99164.0,99157.0,0.11335225]
[1736960306792,0.02339285,99166.0,99157.0,0.11335225]
[1736960307362,0.02339285,99166.0,99157.0,0.11035225]
[1736960307528,0.02339285,99166.0,99158.0,1.5]
[1736960307728,0.201684,99165.0,99158.0,1.5]
[1736960307909,0.201684,99165.0,99158.0,2.0281]
[1736960308112,0.201686,99164.0,99158.0,2.0281]
[1736960308365,0.201692,99161.0,99158.0,0.5281]
[1736960308926,0.201688,99163.0,99158.0,0.5311]
[1736960309234,0.02253855,99162.0,99158.0,0.5301]
[1736960309437,0.02253855,99162.0,99158.0,0.5321]
[1736960310510,0.02253855,99162.0,99158.0,0.5301]
[1736960310950,0.02253855,99162.0,99158.0,0.5311]
[1736960311148,0.02253855,99162.0,99158.0,0.5291]
[1736960311345,0.02253855,99162.0,99158.0,0.5281]
[1736960311657,0.02253855,99162.0,99158.0,0.5301]
[1736960311884,0.02253855,99162.0,99158.0,0.5291]
[1736960312087,0.02253855,99162.0,99158.0,0.5301]
[1736960312533,0.02253855,99162.0,99159.0,1.5]
[1736960312731,0.02253855,99162.0,99159.0,2.0281]
[1736960312986,0.023,99161.0,99159.0,0.5281]
[1736960313165,0.374694,99160.0,99159.0,0.5281]
[1736960315241,0.374694,99160.0,99159.0,0.5301]
[1736960315507,0.374694,99160.0,99159.0,0.5311]
[1736960321188,0.47892092,99160.0,99159.0,0.5311]
[1736960321440,0.47892092,99160.0,99159.0,0.5301]
[1736960321764,0.47892092,99160.0,99159.0,0.5281]
[1736960321918,0.48092092,99160.0,99159.0,0.5281]
[1736960322915,0.383414,99160.0,99159.0,0.5281]
[1736960323132,0.353694,99160.0,99159.0,0.5281]
[1736960323333,0.211414,99160.0,99159.0,0.5281]
[1736960323539,0.208694,99160.0,99159.0,2.0281]
[1736960323736,0.201694,99160.0,99159.0,2.0281]
[1736960323941,0.224694,99160.0,99159.0,2.0281]
[1736960324163,0.381694,99160.0,99159.0,2.0291]
[1736960324336,0.376694,99160.0,99159.0,0.50556145]
[1736960324542,0.374694,99160.0,99159.0,0.50556145]
[1736960324787,0.374694,99160.0,99159.0,0.50756145]
[1736960324988,0.381414,99160.0,99159.0,0.50656145]
[1736960325375,0.383414,99160.0,99159.0,0.50656145]
[1736960325936,0.353694,99160.0,99159.0,0.50656145]
[1736960326384,0.376694,99160.0,99159.0,0.50656145]
[1736960326580,0.374694,99160.0,99159.0,0.50556145]
[1736960326997,0.376694,99160.0,99159.0,0.50556145]
[1736960327170,0.374694,99160.0,99159.0,0.50556145]
[1736960327612,0.374694,99160.0,99159.0,0.50656145]
[1736960327821,0.374694,99160.0,99159.0,0.50756145]
[1736960328665,0.023,99160.0,99159.0,0.50756145]
[1736960328866,0.0008543,99162.0,99159.0,0.50756145]
[1736960330238,0.0008543,99162.0,99159.0,0.50556145]
[1736960330566,0.0008543,99162.0,99159.0,0.50656145]
[1736960331523,0.0008543,99162.0,99159.0,0.50556145]
[1736960331921,0.0008543,99162.0,99159.0,0.50856145]
[1736960332119,0.0018543,99162.0,99160.0,1.5]
[1736960332324,0.0018543,99162.0,99160.0,2.05063]
[1736960334030,0.0008543,99162.0,99160.0,2.05063]
[1736960334266,0.0008543,99162.0,99160.0,2.05363]
[1736960334408,0.023,99161.0,99160.0,2.05863]
[1736960335265,0.0008543,99162.0,99160.0,2.05063]
[1736960335461,0.001,99161.0,99160.0,2.05663]
[1736960335665,0.001,99161.0,99160.0,2.05963]
[1736960335839,0.001,99161.0,99160.0,0.55963]
[1736960337023,0.001,99161.0,99160.0,0.55663]
[1736960337148,0.001,99161.0,99160.0,0.55963]
[1736960337351,0.001,99161.0,99160.0,2.05963]
[1736960337571,0.001,99161.0,99160.0,2.05663]
[1736960338163,0.001,99161.0,99160.0,2.05963]
[1736960338613,0.0018543,99161.0,99160.0,2.05963]
[1736960339259,0.0248543,99161.0,99160.0,2.05963]
[1736960339438,0.0248543,99161.0,99160.0,0.55963]
[1736960341354,0.0018543,99161.0,99160.0,0.55963]
[1736960341562,0.00311493,99161.0,99160.0,0.55963]
[1736960341767,0.25608122,99161.0,99160.0,0.55963]
[1736960342420,0.1574143,99161.0,99160.0,0.55363]
[1736960342570,0.1574143,99161.0,99160.0,0.55463]
[1736960343016,0.1574143,99161.0,99160.0,0.55163]
[1736960343422,0.1574143,99161.0,99160.0,0.55263]
[1736960343616,0.26164122,99161.0,99160.0,0.55263]
[1736960343824,0.26164122,99161.0,99160.0,0.55063]
[1736960344027,0.26264122,99161.0,99160.0,0.55063]
[1736960344240,0.26764122,99161.0,99160.0,0.55163]
[1736960344400,0.26764122,99161.0,99160.0,0.55063]
[1736960344828,0.26164122,99161.0,99160.0,0.55063]
[1736960345032,0.26564122,99161.0,99160.0,0.55063]
[1736960345232,0.26264122,99161.0,99160.0,0.55063]
[1736960345443,0.26564122,99161.0,99160.0,0.55063]
[1736960346312,0.26464122,99161.0,99160.0,0.55063]
[1736960346734,0.26564122,99161.0,99160.0,0.55063]
[1736960347150,0.70511522,99161.0,99160.0,0.51137611]
[1736960347358,0.68211522,99161.0,99160.0,0.51137611]
[1736960347569,0.28864122,99161.0,99160.0,0.51137611]
[1736960347986,0.72189022,99161.0,99160.0,0.51137611]
[1736960348196,0.72189022,99161.0,99160.0,0.49539561]
[1736960348402,0.72189022,99161.0,99160.0,0.45978791]
[1736960348615,0.72189022,99161.0,99160.0,0.26621229]
[1736960348822,0.81895428,99161.0,99160.0,0.22305676]
[1736960349269,0.72189022,99161.0,99160.0,0.22305676]
[1736960349475,0.72189022,99161.0,99160.0,0.10026797]
[1736960349681,0.72089022,99161.0,99160.0,0.10026797]
[1736960349900,0.99552771,99161.0,99160.0,0.02154413]
[1736960350112,0.99552771,99161.0,99160.0,0.00137413]
[1736960350537,0.99552771,99161.0,99159.0,1.6e-07]
[1736960350538,0.620794,99160.0,99159.0,1.6e-07]
[1736960350767,2.33419192,99160.0,99159.0,1.6e-07]